fUST/lending_fUST_20250717
["ID","MTS","AMOUNT","RATE_DAILY","PERIOD"]
[372665336,1752738641656,-460.0,0.0001811,2]
[372665339,1752738641666,-460.0,0.0001811,2]
[372665341,1752738641684,-460.0,0.0001811,2]
[372665343,1752738641697,-460.0,0.0001811,2]
[372665345,1752738641708,-460.0,0.0001811,2]
[372665347,1752738641723,-460.0,0.0001811,2]
[372665350,1752738641741,-460.0,0.00018111,2]
[372665352,1752738641753,-460.0,0.00018111,2]
[372665354,1752738641765,-460.0,0.00018111,2]
[372665357,1752738641778,-460.0,0.00018111,2]
[372665359,1752738641789,-460.0,0.00018111,2]
[372665361,1752738641802,-547.0,0.00018111,2]
[372665363,1752738641814,-460.0,0.00018111,2]
[372665366,1752738641826,-460.0,0.00018111,2]
[372665368,1752738641839,-460.0,0.00018111,2]
[372665370,1752738641850,-460.0,0.00018111,2]
[372665372,1752738641862,-460.0,0.00018111,2]
[372665374,1752738641873,-460.0,0.00018111,2]
[372665377,1752738641885,-460.0,0.00018111,2]
[372665379,1752738641899,-460.0,0.00018111,2]
[372665382,1752738641911,-460.0,0.00018111,2]
[372665384,1752738641923,-460.0,0.00018111,2]
[372665386,1752738641935,-460.0,0.00018111,2]
[372665388,1752738641949,-460.0,0.00018111,2]
[372665391,1752738641962,-460.0,0.00018111,2]
[372665393,1752738641973,-460.0,0.00018111,2]
[372665395,1752738641985,-582.41255191,0.00018111,2]
[372665397,1752738641997,-460.0,0.00018113,2]
[372665399,1752738642008,-460.0,0.00018113,2]
[372665401,1752738642018,-460.0,0.00018113,2]
[372665403,1752738642028,-460.0,0.00018113,2]
[372665406,1752738642040,-460.0,0.00018113,2]
[372665408,1752738642051,-500.0,0.00018113,2]
[372665410,1752738642062,-460.0,0.00018113,2]
[372665412,1752738642074,-460.0,0.00018113,2]
[372665414,1752738642086,-231.19070381,0.00018113,2]
[372665417,1752738642098,-460.0,0.00018113,2]
[372665419,1752738642110,-460.0,0.00018113,2]
[372665421,1752738642121,-254.15517209,0.00018113,2]
[372665423,1752738642134,-460.0,0.00018113,2]
[372665426,1752738642147,-480.8113789,0.00018113,2]
[372665428,1752738642159,-460.0,0.00018113,2]
[372665430,1752738642172,-460.0,0.00018113,2]
[372665432,1752738642183,-460.0,0.00018113,2]
[372665434,1752738642195,-541.96,0.00018113,2]
[372665437,1752738642208,-460.0,0.00018122,2]
[372665439,1752738642219,-460.0,0.00018267,2]
[372665441,1752738642230,-460.0,0.00018267,2]
[372665443,1752738642240,-460.0,0.00018267,2]
[372665445,1752738642251,-460.0,0.00018268,2]
[372665447,1752738642262,-399.57462362,0.00018268,2]
[372665449,1752738642272,-460.0,0.00018268,2]
[372665452,1752738642283,-460.0,0.00018268,2]
[372665454,1752738642294,-460.0,0.00018268,2]
[372665456,1752738642307,-1457.31,0.00018268,2]
[372665460,1752738642320,-460.0,0.00018268,2]
[372665462,1752738642331,-460.0,0.00018269,2]
[372665464,1752738642343,-3681.97,0.00018269,2]
[372665466,1752738642353,-2488.91,0.00018269,2]
[372665468,1752738642363,-460.0,0.00018269,2]
[372665470,1752738642374,-529.59,0.00018269,2]
[372665472,1752738642385,-460.0,0.00018269,2]
[372665476,1752738642396,-460.0,0.00018269,2]
[372665480,1752738642411,-460.0,0.00018269,2]
[372665483,1752738642422,-460.0,0.00018269,2]
[372665486,1752738642433,-1395.41,0.00018269,2]
[372665488,1752738642444,-1384.77675592,0.00018269,2]
[372665492,1752738642466,-485.12324408,0.00018269,2]
[372665494,1752738642477,-460.0,0.00018269,2]
[372665496,1752738642493,-460.0,0.00018269,2]
[372665498,1752738642505,-1067.44,0.00018269,2]
[372665502,1752738642515,-460.0,0.00018269,2]
[372665505,1752738642527,-289.86196442,0.00018269,2]
[372665511,1752738642587,-170.13803558,0.00018269,2]
[372665514,1752738642598,-460.0,0.00018269,2]
[372665516,1752738642609,-460.0,0.00018269,2]
[372665518,1752738642620,-306.16309087,0.0001827,2]
[372665520,1752738642635,-153.83690913,0.0001827,2]
[372665523,1752738642646,-460.0,0.0001827,2]
[372665526,1752738642657,-114.626022,0.00018271,2]
[372665564,1752738643021,-345.373978,0.00018271,2]
[372665567,1752738643032,-460.0,0.00018271,2]
[372665571,1752738643043,-460.0,0.00018271,2]
[372665574,1752738643055,-403.59621874,0.00018271,2]
[372665575,1752738643070,-8.21159836,0.00018271,2]
[372665577,1752738643081,-463.910739,0.00018271,2]
[372665579,1752738643093,-137.40531891,0.00018271,2]
[372665869,1752738646094,-460.0,0.00017993,2]
[372665871,1752738646106,-460.0,0.00018267,2]
[372665874,1752738646117,-322.59468109,0.00018271,2]
[372665876,1752738646128,-460.0,0.00018271,2]
[372665878,1752738646139,-460.0,0.00018271,2]
[372665880,1752738646149,-460.0,0.00018271,2]
[372665882,1752738646161,-463.08,0.00018271,2]
[372665884,1752738646171,-460.0,0.00018271,2]
[372665887,1752738646183,-460.0,0.00018271,2]
[372665889,1752738646193,-360.55199838,0.00018271,2]
[372665891,1752738646203,-460.0,0.00018271,2]
[372665893,1752738646218,-460.0,0.00018271,2]
[372665895,1752738646230,-460.0,0.00018271,2]
[372665898,1752738646241,-907.15,0.00018271,2]
[372665900,1752738646252,-541.33,0.00018271,2]
[372665902,1752738646263,-460.0,0.00018271,2]
[372665904,1752738646273,-460.0,0.00018271,2]
[372665906,1752738646283,-460.0,0.00018271,2]
[372665908,1752738646293,-460.0,0.00018271,2]
[372665910,1752738646304,-460.0,0.00018271,2]
[372665912,1752738646315,-460.0,0.00018271,2]
[372665915,1752738646325,-488.23,0.00018271,2]
[372665917,1752738646336,-460.0,0.00018271,2]
[372665919,1752738646346,-460.0,0.00018271,2]
[372665921,1752738646357,-460.0,0.00018271,2]
[372665923,1752738646369,-718.52,0.00018271,2]
[372665925,1752738646379,-460.0,0.00018271,2]
[372665927,1752738646390,-460.0,0.00018271,2]
[372665930,1752738646400,-460.0,0.00018271,2]
[372665932,1752738646411,-460.0,0.00018271,2]
[372665934,1752738646421,-460.0,0.00018271,2]
[372665936,1752738646433,-513.15584719,0.00018271,2]
[372665938,1752738646443,-460.0,0.00018271,2]
[372665940,1752738646453,-460.0,0.00018271,2]
[372665942,1752738646463,-460.0,0.00018271,2]
[372665944,1752738646474,-460.0,0.00018271,2]
[372665947,1752738646487,-460.0,0.00018271,2]
[372665949,1752738646499,-151.0,0.00018273,2]
[372665951,1752738646509,-265.60140118,0.00018273,2]
[372665953,1752738646521,-151.0,0.00018273,2]
[372665956,1752738646534,-257.47516588,0.00018273,2]
[372665958,1752738646543,-896.0,0.00018273,2]
[372665960,1752738646553,-245.0,0.00018273,2]
[372665962,1752738646565,-825.0,0.00018273,2]
[372665964,1752738646575,-500.0,0.00018273,2]
[372665966,1752738646585,-460.0,0.00018273,2]
[372665968,1752738646595,-460.0,0.00018273,2]
[372665970,1752738646604,-460.0,0.00018273,2]
[372665972,1752738646614,-460.0,0.00018273,2]
[372665974,1752738646624,-460.0,0.00018273,2]
[372665976,1752738646633,-460.0,0.00018273,2]
[372665978,1752738646643,-169.40151226,0.00018273,2]
[372665980,1752738646652,-460.0,0.00018273,2]
[372665982,1752738646662,-590.11139795,0.00018273,2]
[372666005,1752738646862,-460.0,0.00018273,2]
[372666008,1752738646877,-460.0,0.00018273,2]
[372666010,1752738646890,-460.0,0.00018273,2]
[372666012,1752738646900,-460.0,0.00018273,2]
[372666014,1752738646909,-460.0,0.00018273,2]
[372666016,1752738646919,-460.0,0.00018273,2]
[372666018,1752738646929,-570.52577196,0.00018273,2]
[372666020,1752738646939,-460.0,0.00018273,2]
[372666022,1752738646948,-460.0,0.00018273,2]
[372666024,1752738646957,-460.0,0.00018273,2]
[372666026,1752738646967,-460.0,0.00018273,2]
[372666028,1752738646976,-460.0,0.00018273,2]
[372666030,1752738646985,-460.0,0.00018273,2]
[372666032,1752738646995,-435.64467231,0.00018273,2]
[372666034,1752738647004,-460.0,0.00018273,2]
[372666036,1752738647013,-379.40167366,0.00018273,2]
[372666038,1752738647022,-460.0,0.00018273,2]
[372666040,1752738647032,-481.79,0.00018273,2]
[372666042,1752738647041,-460.0,0.00018273,2]
[372666044,1752738647051,-460.0,0.00018273,2]
[372666046,1752738647060,-460.0,0.00018273,2]
[372666048,1752738647074,-460.0,0.00018273,2]
[372666050,1752738647084,-460.0,0.00018273,2]
[372666052,1752738647093,-460.0,0.00018273,2]
[372666054,1752738647103,-460.0,0.00018273,2]
[372666056,1752738647112,-460.0,0.00018273,2]
[372666058,1752738647121,-460.0,0.00018273,2]
[372666060,1752738647130,-247.78201409,0.00018273,2]
[372666062,1752738647140,-460.98859306,0.00018273,2]
[372666064,1752738647150,-460.0,0.00018273,2]
[372666066,1752738647159,-240.52609319,0.00018273,2]
[372666069,1752738647169,-460.0,0.00018273,2]
[372666071,1752738647178,-460.0,0.00018273,2]
[372666073,1752738647189,-460.0,0.00018273,2]
[372666075,1752738647198,-460.0,0.00018273,2]
[372666077,1752738647207,-460.0,0.00018273,2]
[372666079,1752738647217,-460.0,0.00018273,2]
[372666081,1752738647228,-460.0,0.00018273,2]
[372666083,1752738647238,-460.0,0.00018273,2]
[372666085,1752738647247,-634.82,0.00018273,2]
[372666087,1752738647257,-460.0,0.00018273,2]
[372666089,1752738647266,-1403.68,0.00018273,2]
[372666091,1752738647276,-1280.11,0.00018273,2]
[372666093,1752738647286,-460.0,0.00018273,2]
[372666095,1752738647295,-460.0,0.00018273,2]
[372666097,1752738647306,-647.78,0.00018273,2]
[372666099,1752738647315,-460.0,0.00018273,2]
[372666101,1752738647324,-460.0,0.00018273,2]
[372666103,1752738647334,-555.74,0.00018273,2]
[372666105,1752738647343,-460.0,0.00018273,2]
[372666107,1752738647352,-1000.0,0.00018296,2]
[372666109,1752738647362,-500.0,0.00018325,2]
[372666111,1752738647371,-500.0,0.00018325,2]
[372666113,1752738647381,-272.3479441,0.00018325,2]
[372666115,1752738647391,-539.96803748,0.00018325,2]
[372666117,1752738647400,-500.0,0.00018325,2]
[372666119,1752738647409,-500.0,0.00018325,2]
[372666121,1752738647419,-500.0,0.00018325,2]
[372666124,1752738647429,-460.0,0.0001838,2]
[372666125,1752738647438,-460.0,0.0001838,2]
[372666128,1752738647448,-460.0,0.0001838,2]
[372666130,1752738647457,-472.98111678,0.0001838,2]
[372666132,1752738647467,-460.0,0.0001838,2]
[372666134,1752738647477,-460.0,0.0001838,2]
[372666136,1752738647490,-460.0,0.0001838,2]
[372666138,1752738647500,-460.0,0.0001838,2]
[372666140,1752738647510,-460.0,0.0001838,2]
[372666142,1752738647519,-460.0,0.0001838,2]
[372666144,1752738647529,-460.0,0.0001838,2]
[372666146,1752738647539,-460.0,0.0001838,2]
[372666148,1752738647548,-460.0,0.0001838,2]
[372666150,1752738647558,-540.29,0.0001838,2]
[372666152,1752738647568,-2572.99,0.0001838,2]
[372666154,1752738647578,-460.0,0.0001838,2]
[372666156,1752738647588,-1430.16,0.00018381,2]
[372666158,1752738647597,-460.0,0.00018381,2]
[372666160,1752738647607,-460.0,0.00018381,2]
[372666162,1752738647616,-1391.81,0.00018381,2]
[372666164,1752738647625,-2652.75,0.00018381,2]
[372666166,1752738647635,-857.11,0.00018381,2]
[372666168,1752738647645,-497.50175411,0.00018381,2]
[372666170,1752738647654,-460.0,0.00018384,2]
[372666172,1752738647664,-460.0,0.00018384,2]
[372666174,1752738647674,-460.0,0.00018384,2]
[372666176,1752738647684,-460.0,0.00018384,2]
[372666178,1752738647693,-460.0,0.00018384,2]
[372666180,1752738647704,-460.0,0.00018384,2]
[372666182,1752738647713,-460.0,0.00018384,2]
[372666184,1752738647723,-368.44174212,0.00018384,2]
[372666186,1752738647733,-460.0,0.00018385,2]
[372666188,1752738647743,-523.68,0.00018385,2]
[372666190,1752738647752,-460.0,0.00018385,2]
[372666192,1752738647762,-460.0,0.00018385,2]
[372666194,1752738647771,-460.0,0.00018385,2]
[372666196,1752738647780,-460.0,0.00018385,2]
[372666197,1752738647790,-460.0,0.00018385,2]
[372666198,1752738647799,-460.0,0.00018385,2]
[372666199,1752738647809,-460.0,0.00018385,2]
[372666200,1752738647818,-460.0,0.00018385,2]
[372666201,1752738647828,-460.0,0.00018385,2]
[372666202,1752738647838,-460.0,0.00018385,2]
[372666203,1752738647848,-460.0,0.00018385,2]
[372666204,1752738647857,-460.0,0.00018385,2]
[372666205,1752738647866,-460.0,0.00018385,2]
[372666206,1752738647876,-460.0,0.00018387,2]
[372666207,1752738647886,-580.52143608,0.00018387,2]
[372666208,1752738647895,-460.0,0.00018387,2]
[372666209,1752738647905,-460.0,0.00018387,2]
[372666211,1752738647914,-444.14886663,0.00018387,2]
[372666213,1752738647924,-500.0,0.00018387,2]
[372666215,1752738647934,-460.0,0.00018387,2]
[372666217,1752738647944,-460.0,0.00018387,2]
[372666219,1752738647955,-460.0,0.00018387,2]
[372666221,1752738647965,-460.0,0.00018387,2]
[372666223,1752738647975,-460.0,0.00018387,2]
[372666225,1752738647985,-460.0,0.00018387,2]
[372666227,1752738647994,-460.0,0.00018387,2]
[372666229,1752738648004,-500.0,0.00018392,2]
[372666231,1752738648014,-460.0,0.00018396,2]
[372666233,1752738648023,-13970.33010494,0.00018443,2]
[372666235,1752738648032,-500.0,0.00018445,2]
[372666237,1752738648042,-2893.37807703,0.00018447,2]
[372666239,1752738648052,-211.00153815,0.00018486,2]
[372666241,1752738648061,-1000.0,0.00018521,2]
[372666243,1752738648071,-1000.0,0.00018521,2]
[372666245,1752738648081,-460.0,0.00018541,2]
[372666247,1752738648091,-460.0,0.00018541,2]
[372666249,1752738648100,-460.0,0.00018542,2]
[372666251,1752738648110,-460.0,0.00018542,2]
[372666253,1752738648121,-460.0,0.00018542,2]
[372666255,1752738648130,-460.0,0.00018542,2]
[372666257,1752738648141,-1457.31,0.00018542,2]
[372666259,1752738648150,-460.0,0.00018542,2]
[372666261,1752738648159,-460.0,0.00018543,2]
[372666263,1752738648169,-3681.97,0.00018543,2]
[372666265,1752738648179,-2488.91,0.00018543,2]
[372666267,1752738648189,-460.0,0.00018543,2]
[372666269,1752738648199,-529.59,0.00018543,2]
[372666271,1752738648208,-383.96,0.00018543,2]
[372666273,1752738648218,-460.0,0.00018543,2]
[372666275,1752738648228,-460.0,0.00018543,2]
[372666277,1752738648237,-1395.41,0.00018543,2]
[372666279,1752738648247,-1869.9,0.00018543,2]
[372666281,1752738648257,-460.0,0.00018543,2]
[372666283,1752738648267,-466.75911472,0.00018543,2]
[372666285,1752738648276,-1067.44,0.00018543,2]
[372666287,1752738648285,-460.0,0.00018543,2]
[372666289,1752738648294,-460.0,0.00018543,2]
[372666290,1752738648304,-460.0,0.00018543,2]
[372666293,1752738648313,-460.0,0.00018543,2]
[372666294,1752738648323,-460.0,0.00018544,2]
[372666296,1752738648333,-460.0,0.00018544,2]
[372666298,1752738648343,-460.0,0.00018545,2]
[372666300,1752738648353,-460.0,0.00018545,2]
[372666302,1752738648362,-460.0,0.00018545,2]
[372666305,1752738648372,-462.53014485,0.00018545,2]
[372666307,1752738648382,-460.0,0.00018545,2]
[372666308,1752738648392,-460.0,0.00018545,2]
[372666310,1752738648402,-460.0,0.00018545,2]
[372666313,1752738648414,-460.0,0.00018545,2]
[372666314,1752738648423,-460.0,0.00018545,2]
[372666316,1752738648433,-460.0,0.00018545,2]
[372666318,1752738648443,-460.0,0.00018545,2]
[372666320,1752738648452,-460.0,0.00018545,2]
[372666323,1752738648462,-907.15,0.00018545,2]
[372666325,1752738648471,-541.33,0.00018545,2]
[372666326,1752738648480,-268.90178847,0.00018545,2]
[372666329,1752738648493,-460.0,0.00018545,2]
[372666331,1752738648503,-460.0,0.00018545,2]
[372666333,1752738648513,-460.0,0.00018545,2]
[372666335,1752738648522,-488.23,0.00018545,2]
[372666336,1752738648533,-460.0,0.00018545,2]
[372666338,1752738648542,-460.0,0.00018545,2]
[372666340,1752738648553,-460.0,0.00018545,2]
[372666342,1752738648564,-718.52,0.00018545,2]
[372666344,1752738648574,-371.08042624,0.00018545,2]
[372666346,1752738648582,-460.0,0.00018545,2]
[372666348,1752738648591,-460.0,0.00018545,2]
[372666350,1752738648601,-460.0,0.00018545,2]
[372666352,1752738648610,-460.0,0.00018545,2]
[372666354,1752738648619,-460.0,0.00018545,2]
[372666356,1752738648628,-460.0,0.00018545,2]
[372666358,1752738648638,-460.0,0.00018545,2]
[372666360,1752738648647,-460.0,0.00018545,2]
[372666362,1752738648656,-292.27343318,0.00018545,2]
[372666364,1752738648666,-151.0,0.00018547,2]
[372666366,1752738648675,-151.0,0.00018547,2]
[372666368,1752738648686,-896.0,0.00018547,2]
[372666370,1752738648696,-825.0,0.00018547,2]
[372666372,1752738648705,-443.0,0.00018547,2]
[372666374,1752738648715,-460.0,0.00018547,2]
[372666376,1752738648724,-460.0,0.00018547,2]
[372666378,1752738648734,-460.0,0.00018547,2]
[372666380,1752738648743,-458.13600097,0.00018547,2]
[372666382,1752738648752,-460.0,0.00018547,2]
[372666384,1752738648761,-460.0,0.00018547,2]
[372666386,1752738648770,-460.0,0.00018547,2]
[372666388,1752738648779,-460.0,0.00018547,2]
[372666390,1752738648788,-460.0,0.00018547,2]
[372666392,1752738648798,-460.0,0.00018547,2]
[372666394,1752738648808,-460.0,0.00018547,2]
[372666396,1752738648817,-460.0,0.00018547,2]
[372666398,1752738648827,-460.0,0.00018547,2]
[372666400,1752738648837,-460.0,0.00018547,2]
[372666402,1752738648846,-460.0,0.00018547,2]
[372666404,1752738648856,-460.0,0.00018547,2]
[372666406,1752738648866,-460.0,0.00018547,2]
[372666408,1752738648875,-460.0,0.00018547,2]
[372666410,1752738648884,-481.79,0.00018547,2]
[372666412,1752738648894,-460.0,0.00018547,2]
[372666414,1752738648903,-460.0,0.00018547,2]
[372666416,1752738648913,-460.0,0.00018547,2]
[372666418,1752738648922,-302.53767997,0.00018547,2]
[372666420,1752738648933,-460.0,0.00018547,2]
[372666422,1752738648942,-460.0,0.00018547,2]
[372666424,1752738648952,-460.0,0.00018547,2]
[372666426,1752738648962,-460.0,0.00018547,2]
[372666428,1752738648972,-460.0,0.00018547,2]
[372666430,1752738648982,-460.0,0.00018547,2]
[372666432,1752738648992,-460.0,0.00018547,2]
[372666434,1752738649001,-460.0,0.00018547,2]
[372666436,1752738649011,-460.0,0.00018547,2]
[372666438,1752738649020,-460.0,0.00018547,2]
[372666440,1752738649029,-460.0,0.00018547,2]
[372666442,1752738649038,-460.0,0.00018547,2]
[372666444,1752738649048,-460.0,0.00018547,2]
[372666446,1752738649057,-460.0,0.00018547,2]
[372666447,1752738649068,-634.82,0.00018547,2]
[372666449,1752738649078,-460.0,0.00018547,2]
[372666451,1752738649087,-1403.68,0.00018547,2]
[372666453,1752738649096,-1280.11,0.00018547,2]
[372666456,1752738649106,-468.46278351,0.00018547,2]
[372666458,1752738649116,-460.0,0.00018547,2]
[372666459,1752738649126,-647.78,0.00018547,2]
[372666461,1752738649136,-460.0,0.00018547,2]
[372666463,1752738649146,-555.74,0.00018547,2]
[372666465,1752738649156,-460.0,0.00018547,2]
[372666468,1752738649166,-460.0,0.00018654,2]
[372666469,1752738649176,-460.0,0.00018654,2]
[372666472,1752738649188,-217.7196317,0.00018654,2]
[372666473,1752738649198,-460.0,0.00018654,2]
[372666475,1752738649208,-460.0,0.00018654,2]
[372666477,1752738649218,-460.0,0.00018654,2]
[372666479,1752738649227,-460.0,0.00018654,2]
[372666482,1752738649237,-460.0,0.00018654,2]
[372666483,1752738649247,-460.0,0.00018654,2]
[372666486,1752738649257,-460.0,0.00018654,2]
[372666487,1752738649267,-460.0,0.00018654,2]
[372666490,1752738649277,-540.29,0.00018654,2]
[372666492,1752738649288,-2572.99,0.00018654,2]
[372666494,1752738649297,-460.0,0.00018654,2]
[372666496,1752738649307,-1430.16,0.00018655,2]
[372666498,1752738649319,-460.0,0.00018655,2]
[372666500,1752738649328,-1391.81,0.00018655,2]
[372666502,1752738649337,-2652.75,0.00018655,2]
[372666504,1752738649347,-857.11,0.00018655,2]
[372666506,1752738649358,-460.0,0.00018658,2]
[372666508,1752738649368,-460.0,0.00018658,2]
[372666509,1752738649378,-591.18,0.00018659,2]
[372666512,1752738649387,-460.0,0.00018659,2]
[372666513,1752738649397,-460.0,0.00018659,2]
[372666515,1752738649407,-460.0,0.00018659,2]
[372666517,1752738649417,-460.0,0.00018659,2]
[372666519,1752738649427,-460.0,0.00018659,2]
[372666522,1752738649438,-460.0,0.00018659,2]
[372666523,1752738649447,-460.0,0.00018659,2]
[372666526,1752738649457,-460.0,0.00018659,2]
[372666528,1752738649469,-438.91325208,0.00018661,2]
[372666530,1752738649479,-270.97257431,0.00018661,2]
[372666532,1752738649493,-396.26883473,0.00018661,2]
[372666534,1752738649504,-460.0,0.00018661,2]
[372666536,1752738649513,-460.0,0.00018661,2]
[372666538,1752738649524,-194.25,0.00018661,2]
[372666540,1752738649534,-421.64675514,0.00018661,2]
[372666542,1752738649544,-520.12,0.00018661,2]
[372666544,1752738649554,-460.0,0.00018661,2]
[372666546,1752738649566,-460.0,0.0001867,2]
[372666548,1752738649576,-2887.13709782,0.00018729,2]
[372666550,1752738649586,-460.0,0.00018816,2]
[372666552,1752738649595,-460.0,0.00018816,2]
[372666554,1752738649605,-460.0,0.00018816,2]
[372666556,1752738649614,-1457.31,0.00018816,2]
[372666557,1752738649623,-460.0,0.00018817,2]
[372666559,1752738649633,-3681.97,0.00018817,2]
[372666561,1752738649643,-2488.91,0.00018817,2]
[372666564,1752738649653,-529.59,0.00018817,2]
[372666566,1752738649665,-460.0,0.00018817,2]
[372666568,1752738649675,-460.0,0.00018817,2]
[372666570,1752738649687,-1395.41,0.00018817,2]
[372666572,1752738649697,-1869.9,0.00018817,2]
[372666574,1752738649707,-460.0,0.00018817,2]
[372666576,1752738649717,-1067.44,0.00018817,2]
[372666578,1752738649727,-460.0,0.00018817,2]
[372666580,1752738649737,-417.16026138,0.00018817,2]
[372666582,1752738649747,-460.0,0.00018818,2]
[372666584,1752738649757,-460.0,0.00018818,2]
[372666586,1752738649767,-460.0,0.00018819,2]
[372666588,1752738649777,-460.0,0.00018819,2]
[372666590,1752738649786,-460.0,0.00018819,2]
[372666592,1752738649796,-460.0,0.00018819,2]
[372666594,1752738649805,-907.15,0.00018819,2]
[372666596,1752738649814,-541.33,0.00018819,2]
[372666598,1752738649823,-460.0,0.00018819,2]
[372666600,1752738649833,-488.23,0.00018819,2]
[372666602,1752738649843,-460.0,0.00018819,2]
[372666604,1752738649852,-718.52,0.00018819,2]
[372666606,1752738649862,-460.0,0.00018819,2]
[372666608,1752738649872,-159.31,0.00018819,2]
[372666610,1752738649880,-460.0,0.00018819,2]
[372666612,1752738649891,-460.0,0.00018819,2]
[372666614,1752738649900,-151.0,0.00018821,2]
[372666616,1752738649910,-198.0,0.00018821,2]
[372666618,1752738649919,-896.0,0.00018821,2]
[372666620,1752738649929,-825.0,0.00018821,2]
[372666622,1752738649939,-460.0,0.00018821,2]
[372666624,1752738649949,-460.0,0.00018821,2]
[372666626,1752738649958,-460.0,0.00018821,2]
[372666628,1752738649968,-460.0,0.00018821,2]
[372666630,1752738649977,-460.0,0.00018821,2]
[372666632,1752738649986,-481.79,0.00018821,2]
[372666634,1752738649995,-460.0,0.00018821,2]
[372666636,1752738650005,-460.0,0.00018821,2]
[372666638,1752738650014,-460.0,0.00018821,2]
[372666640,1752738650023,-460.0,0.00018821,2]
[372666642,1752738650033,-602.16,0.00018821,2]
[372666644,1752738650042,-460.0,0.00018821,2]
[372666646,1752738650052,-460.0,0.00018821,2]
[372666648,1752738650061,-460.0,0.00018821,2]
[372666649,1752738650071,-460.0,0.00018821,2]
[372666650,1752738650080,-634.82,0.00018821,2]
[372666651,1752738650090,-460.0,0.00018821,2]
[372666652,1752738650099,-460.0,0.00018821,2]
[372666653,1752738650108,-1403.68,0.00018821,2]
[372666654,1752738650118,-1280.11,0.00018821,2]
[372666655,1752738650126,-460.0,0.00018821,2]
[372666656,1752738650134,-647.78,0.00018821,2]
[372666657,1752738650144,-555.74,0.00018821,2]
[372666658,1752738650154,-453.84995944,0.00018821,2]
[372666659,1752738650298,-1000.0,0.00018873,2]
[372666660,1752738650317,-1000.0,0.00018873,2]
[372666661,1752738650327,-1000.0,0.00018873,2]
[372666662,1752738650337,-1000.0,0.00018873,2]
[372666663,1752738650347,-443.7479935,0.000189,2]
[372666664,1752738650357,-11918.9251564,0.000189,2]
[372666665,1752738650367,-460.0,0.00018928,2]
[372666666,1752738650376,-460.0,0.00018928,2]
[372666667,1752738650386,-460.0,0.00018928,2]
[372666668,1752738650395,-460.0,0.00018928,2]
[372666669,1752738650405,-460.0,0.00018928,2]
[372666670,1752738650415,-540.29,0.00018928,2]
[372666672,1752738650425,-2572.99,0.00018928,2]
[372666673,1752738650435,-415.82,0.00018928,2]
[372666676,1752738650445,-1430.16,0.00018929,2]
[372666678,1752738650455,-460.0,0.00018929,2]
[372666680,1752738650464,-1391.81,0.00018929,2]
[372666681,1752738650474,-2652.75,0.00018929,2]
[372666683,1752738650485,-857.11,0.00018929,2]
[372666685,1752738650496,-460.0,0.00018932,2]
[372666688,1752738650506,-460.0,0.00018933,2]